fUSD/lending_fUSD_20240720
["ID","MTS","AMOUNT","RATE_DAILY","PERIOD"]
[332693581,1721452300017,-500.0,0.00033698,14]
[332693582,1721452300026,-787.66,0.00033698,14]
[332693583,1721452300035,-584.73,0.00033698,14]
[332693584,1721452300044,-500.0,0.00033698,14]
[332693585,1721452300053,-500.0,0.00033698,14]
[332693586,1721452300063,-500.0,0.00033698,14]
[332693587,1721452300072,-766.73,0.00033698,14]
[332693588,1721452300081,-684.63,0.00033698,14]
[332693589,1721452300090,-500.0,0.00033698,14]
[332693590,1721452300099,-507.36,0.00033698,14]
[332693591,1721452300110,-507.31678845,0.00033698,14]
[332693592,1721452300119,-500.0,0.00033698,14]
[332693593,1721452300127,-500.0,0.00033698,14]
[332693594,1721452300137,-500.0,0.00033698,14]
[332693595,1721452300146,-500.0,0.00033698,14]
[332693596,1721452300155,-500.0,0.00033698,14]
[332693597,1721452300164,-500.0,0.00033698,14]
[332693598,1721452300173,-500.0,0.00033698,14]
[332693599,1721452300183,-500.0,0.00033698,14]
[332693600,1721452300192,-500.0,0.00033698,14]
[332693601,1721452300202,-541.77692768,0.00033698,14]
[332693602,1721452300211,-500.0,0.00033698,14]
[332693603,1721452300221,-500.0,0.00033698,14]
[332693604,1721452300230,-342.69104942,0.00033698,14]
[332693605,1721452300239,-500.0,0.00033698,14]
[332693606,1721452300248,-500.0,0.00033698,14]
[332693607,1721452300258,-773.96,0.00033698,14]
[332693608,1721452300267,-429.81648717,0.00033698,14]
[332693609,1721452300276,-500.0,0.00033698,14]
[332693610,1721452300286,-887.87,0.00033698,14]
[332693611,1721452300295,-500.0,0.00033698,14]
[332693612,1721452300304,-151.0,0.00033698,7]
[332693613,1721452300314,-500.0,0.00033698,14]
[332693614,1721452300323,-500.0,0.00033698,14]
[332693615,1721452300333,-500.0,0.00033698,14]
[332693616,1721452300343,-576.39,0.00033698,14]
[332693617,1721452300353,-500.0,0.00033698,14]
[332693618,1721452300362,-931.48,0.00033698,14]
[332693619,1721452300372,-500.0,0.00033698,14]
[332693620,1721452300381,-151.0,0.00033698,7]
[332693621,1721452300391,-519.82571526,0.00033698,14]
[332693622,1721452300401,-545.9,0.00033698,14]
[332693623,1721452300410,-500.0,0.00033698,14]
[332693624,1721452300420,-804.97,0.00033698,14]
[332693625,1721452300430,-500.0,0.00033698,14]
[332693626,1721452300439,-500.0,0.00033698,14]
[332693627,1721452300449,-2058.6,0.00033698,14]
[332693628,1721452300459,-500.0,0.00033698,14]
[332693629,1721452300468,-500.0,0.00033698,14]
[332693630,1721452300478,-672.54,0.00033698,14]
[332693631,1721452300487,-1597.61,0.00033698,14]
[332693632,1721452300497,-500.0,0.00033698,14]
[332693633,1721452300507,-151.0,0.00033698,7]
[332693634,1721452300516,-500.0,0.00033698,14]
[332693635,1721452300526,-500.0,0.00033698,14]
[332693636,1721452300535,-1557.77,0.00033698,14]
[332693637,1721452300544,-1136.23,0.00033698,14]
[332693638,1721452300554,-545.92303762,0.00033698,14]
[332693639,1721452300563,-500.0,0.00033698,14]
[332693640,1721452300572,-1349.57,0.00033698,14]
[332693641,1721452300583,-850.4,0.00033698,14]
[332693642,1721452300593,-500.0,0.00033698,14]
[332693643,1721452300604,-615.63,0.00033698,14]
[332693644,1721452300614,-500.0,0.00033698,14]
[332693645,1721452300623,-500.0,0.00033698,14]
[332693646,1721452300635,-585.37,0.00033698,14]
[332693647,1721452300644,-500.0,0.00033698,14]
[332693648,1721452300654,-1925.0,0.00033698,14]
[332693649,1721452300664,-500.0,0.00033698,14]
[332693650,1721452300675,-500.0,0.00033698,14]
[332693651,1721452300684,-500.0,0.00033698,14]
[332693652,1721452300694,-500.0,0.00033698,14]
[332693653,1721452300703,-633.15,0.00033698,14]
[332693654,1721452300713,-500.0,0.00033698,14]
[332693655,1721452300722,-521.65802862,0.00033698,14]
[332693656,1721452300732,-500.0,0.00033698,14]
[332693657,1721452300742,-500.0,0.00033698,14]
[332693658,1721452300752,-1477.09,0.00033698,14]
[332693659,1721452300761,-500.0,0.00033698,14]
[332693660,1721452300770,-955.64,0.00033698,14]
[332693661,1721452300780,-703.79,0.00033698,14]
[332693662,1721452300789,-500.0,0.00033698,14]
[332693663,1721452300799,-500.0,0.00033698,14]
[332693664,1721452300808,-1257.46,0.00033698,14]
[332693665,1721452300818,-500.0,0.00033698,14]
[332693666,1721452300827,-500.0,0.00033698,14]
[332693667,1721452300836,-500.0,0.00033698,14]
[332693668,1721452300846,-500.0,0.00033698,14]
[332693669,1721452300857,-1259.58,0.00033698,14]
[332693670,1721452300867,-579.01882097,0.00033698,2]
[332693671,1721452300877,-808.34,0.00033698,14]
[332693672,1721452300887,-1144.31,0.00033698,14]
[332693673,1721452300896,-507.82224323,0.00033698,14]
[332693674,1721452300906,-1237.13,0.00033698,14]
[332693675,1721452300916,-510.40118682,0.00033698,14]
[332693676,1721452300926,-518.83877828,0.00033698,14]
[332693677,1721452300936,-500.0,0.00033698,14]
[332693678,1721452300946,-500.0,0.00033698,14]
[332693679,1721452300956,-741.83,0.00033698,14]
[332693680,1721452300965,-500.0,0.00033698,14]
[332693681,1721452300975,-500.0,0.00033698,14]
[332693682,1721452300984,-500.0,0.00033698,14]
[332693683,1721452300993,-688.35,0.00033698,14]
[332693684,1721452301003,-516.95157503,0.00033698,14]
[332693685,1721452301013,-509.81525483,0.00033698,14]
[332693686,1721452301022,-809.96,0.00033698,14]
[332693687,1721452301032,-1690.39,0.00033698,14]
[332693688,1721452301042,-1144.57,0.00033698,14]
[332693689,1721452301051,-503.87071878,0.00033698,14]
[332693690,1721452301061,-500.0,0.00033698,14]
[332693691,1721452301070,-500.0,0.00033698,14]
[332693692,1721452301079,-511.57334002,0.00033698,14]
[332693693,1721452301089,-500.0,0.00033698,14]
[332693694,1721452301099,-500.0,0.00033698,14]
[332693695,1721452301112,-1161.81,0.00033698,14]
[332693696,1721452301122,-500.0,0.00033698,14]
[332693697,1721452301131,-853.53,0.00033698,14]
[332693698,1721452301140,-1958.12,0.00033698,14]
[332693699,1721452301153,-750.64,0.00033698,14]
[332693700,1721452301162,-503.98173944,0.00033698,14]
[332693701,1721452301171,-500.0,0.00033698,14]
[332693702,1721452301181,-2258.69,0.00033698,14]
[332693703,1721452301190,-500.0,0.00033698,14]
[332693704,1721452301200,-500.0,0.00033698,14]
[332693705,1721452301209,-500.0,0.00033698,14]
[332693706,1721452301219,-500.0,0.00033698,14]
[332693707,1721452301228,-372.51657509,0.00033698,14]
[332693708,1721452301238,-500.0,0.00033698,14]
[332693709,1721452301248,-500.0,0.00033698,14]
[332693710,1721452301258,-500.0,0.00033698,14]
[332693711,1721452301268,-500.0,0.00033698,14]
[332693712,1721452301278,-569.38,0.00033698,14]
[332693713,1721452301288,-1031.87,0.00033698,14]
[332693714,1721452301297,-500.0,0.00033698,14]
[332693715,1721452301307,-500.0,0.00033698,14]
[332693716,1721452301316,-500.0,0.00033698,14]
[332693717,1721452301326,-835.76,0.00033698,14]
[332693718,1721452301335,-1061.35,0.00033698,14]
[332693719,1721452301345,-500.0,0.00033698,14]
[332693720,1721452301355,-508.61088023,0.00033698,14]
[332693721,1721452301365,-500.0,0.00033698,14]
[332693722,1721452301374,-500.0,0.00033698,14]
[332693723,1721452301384,-1119.4,0.00033698,14]
[332693724,1721452301394,-1376.73,0.00033698,14]
[332693725,1721452301403,-504.03433642,0.00033698,14]
[332693726,1721452301413,-500.0,0.00033698,14]
[332693727,1721452301423,-500.0,0.00033698,14]
[332693728,1721452301432,-507.78857728,0.00033698,14]
[332693729,1721452301442,-634.42,0.00033698,14]
[332693730,1721452301451,-500.0,0.00033698,14]
[332693731,1721452301461,-500.0,0.00033698,14]
[332693732,1721452301470,-1203.665083,0.00033698,7]
[332693733,1721452301480,-500.0,0.00033698,14]
[332693734,1721452301490,-937.2,0.00033698,14]
[332693735,1721452301499,-500.0,0.00033698,14]
[332693736,1721452301509,-500.0,0.00033698,14]
[332693737,1721452301519,-512.68948367,0.00033698,14]
[332693738,1721452301529,-1180.46,0.00033698,14]
[332693739,1721452301538,-151.0,0.00033698,7]
[332693740,1721452301548,-1095.19,0.00033698,14]
[332693741,1721452301559,-489.36019116,0.00033698,14]
[332693742,1721452301569,-1203.665083,0.00033698,7]
[332693743,1721452301579,-265.543095,0.00033698,7]
[332693744,1721452301588,-1149.74,0.00033698,14]
[332693745,1721452301600,-945.13,0.00033698,14]
[332693746,1721452301611,-516.63344938,0.00033698,14]
[332693747,1721452301621,-500.0,0.00033698,14]
[332693748,1721452301631,-170.986568,0.00033698,7]
[332693749,1721452301642,-1429.72,0.00033698,14]
[332693750,1721452301651,-1610.4,0.00033698,14]
[332693751,1721452301661,-514.45,0.00033698,14]
[332693752,1721452301672,-500.0,0.00033698,14]
[332693753,1721452301682,-170.986568,0.00033698,7]
[332693754,1721452301692,-500.0,0.00033698,14]
[332693755,1721452301701,-500.0,0.00033698,14]
[332693756,1721452301711,-500.0,0.00033698,14]
[332693757,1721452301721,-500.0,0.00033698,14]
[332693758,1721452301730,-500.0,0.00033698,14]
[332693759,1721452301739,-1148.04,0.00033698,14]
[332693760,1721452301749,-464.18160636,0.00033698,14]
[332693761,1721452301759,-500.0,0.00033698,14]
[332693762,1721452301769,-1507.35,0.00033698,14]
[332693763,1721452301779,-1028.57,0.00033698,14]
[332693764,1721452301788,-500.0,0.00033698,14]
[332693765,1721452301797,-500.0,0.00033698,14]
[332693766,1721452301807,-500.0,0.00033698,14]
[332693767,1721452301817,-726.07,0.00033698,14]
[332693768,1721452301826,-500.0,0.00033698,14]
[332693769,1721452301836,-500.0,0.00033698,14]
[332693770,1721452301846,-840.79,0.00033698,14]
[332693771,1721452301856,-500.0,0.00033698,14]
[332693772,1721452301866,-500.0,0.00033698,14]
[332693773,1721452301876,-500.0,0.00033698,14]
[332693774,1721452301886,-507.38068731,0.00033698,14]
[332693775,1721452301896,-500.0,0.00033698,14]
[332693776,1721452301906,-2112.88,0.00033698,14]
[332693777,1721452301916,-500.0,0.00033698,14]
[332693778,1721452301926,-508.10742751,0.00033698,14]
[332693779,1721452301935,-500.0,0.00033698,14]
[332693780,1721452301945,-258.946585,0.00033698,7]
[332693781,1721452301956,-500.0,0.00033698,14]
[332693782,1721452301965,-500.0,0.00033698,14]
[332693783,1721452301976,-500.0,0.00033698,14]
[332693784,1721452301986,-500.0,0.00033698,14]
[332693785,1721452301996,-500.0,0.00033698,14]
[332693786,1721452302006,-500.0,0.00033698,14]
[332693787,1721452302016,-500.0,0.00033698,14]
[332693788,1721452302026,-500.0,0.00033698,14]
[332693789,1721452302036,-151.0,0.00033698,7]
[332693790,1721452302045,-819.09,0.00033698,14]
[332693791,1721452302056,-867.8,0.00033698,14]
[332693792,1721452302066,-500.0,0.00033698,14]
[332693793,1721452302076,-1383.64,0.00033698,14]
[332693794,1721452302086,-1320.46,0.00033698,14]
[332693795,1721452302095,-1502.0,0.00033698,14]
[332693796,1721452302106,-500.0,0.00033698,14]
[332693797,1721452302116,-500.0,0.00033698,14]
[332693798,1721452302126,-505.30274009,0.00033698,14]
[332693799,1721452302136,-500.0,0.00033698,14]
[332693800,1721452302146,-151.0,0.00033698,7]
[332693801,1721452302156,-500.0,0.00033698,14]
[332693802,1721452302165,-500.0,0.00033698,14]
[332693803,1721452302175,-500.0,0.00033698,14]
[332693804,1721452302185,-500.0,0.00033698,14]
[332693805,1721452302195,-500.0,0.00033698,14]
[332693806,1721452302205,-151.0,0.00033698,7]
[332693807,1721452302215,-1255.44,0.00033698,14]
[332693808,1721452302224,-518.10128649,0.00033698,14]
[332693809,1721452302234,-500.0,0.00033698,14]
[332693810,1721452302244,-1033.38,0.00033698,14]
[332693811,1721452302254,-500.0,0.00033698,14]
[332693812,1721452302264,-500.0,0.00033698,14]
[332693813,1721452302274,-500.0,0.00033698,14]
[332693814,1721452302284,-514.68572939,0.00033698,14]
[332693815,1721452302294,-500.0,0.00033698,14]
[332693816,1721452302304,-529.47,0.00033698,14]
[332693817,1721452302314,-521.91015002,0.00033698,14]
[332693818,1721452302323,-500.0,0.00033698,14]
[332693819,1721452302333,-500.0,0.00033698,14]
[332693820,1721452302343,-500.0,0.00033698,14]
[332693821,1721452302353,-500.0,0.00033698,14]
[332693822,1721452302364,-500.0,0.00033698,14]
[332693823,1721452302374,-500.0,0.00033698,14]
[332693824,1721452302384,-500.0,0.00033698,14]
[332693825,1721452302393,-500.0,0.00033698,14]
[332693826,1721452302403,-500.0,0.00033698,14]
[332693827,1721452302415,-356.58835471,0.00033698,14]
[332693828,1721452302426,-1034.3,0.00033698,14]
[332693829,1721452302436,-500.0,0.00033698,14]
[332693830,1721452302637,-3294.129612,0.00033698,7]
[332693831,1721452302654,-959.71,0.00033698,14]
[332693832,1721452302665,-500.0,0.00033698,14]
[332693833,1721452302675,-591.51,0.00033698,14]
[332693834,1721452302686,-500.0,0.00033698,14]
[332693835,1721452302695,-953.56,0.00033698,14]
[332693836,1721452302705,-500.0,0.00033698,14]
[332693837,1721452302714,-500.0,0.00033698,14]
[332693838,1721452302723,-500.0,0.00033698,14]
[332693839,1721452302732,-500.0,0.00033698,14]
[332693840,1721452302741,-3294.129612,0.00033698,7]
[332693841,1721452302751,-2033.65,0.00033698,14]
[332693842,1721452302760,-809.72,0.00033698,14]
[332693843,1721452302770,-503.66614716,0.00033698,14]
[332693844,1721452302779,-227.545334,0.00033698,7]
[332693845,1721452302789,-500.0,0.00033698,14]
[332693846,1721452302799,-212.97323928,0.00033698,14]
[332693847,1721452302808,-1937.31,0.00033698,14]
[332693848,1721452302817,-513.24666543,0.00033698,14]
[332693849,1721452302827,-626.01,0.00033698,14]
[332693850,1721452302837,-227.545334,0.00033698,7]
[332693851,1721452302846,-694.93,0.00033698,14]
[332693852,1721452302856,-500.0,0.00033698,14]
[332693853,1721452302866,-813.05,0.00033698,14]
[332693854,1721452302876,-1259.04,0.00033698,14]
[332693855,1721452302885,-1232.51,0.00033698,14]
[332693856,1721452302895,-561.68,0.00033698,14]
[332693857,1721452302904,-500.0,0.00033698,14]
[332693858,1721452302914,-1006.17,0.00033698,14]
[332693859,1721452302923,-500.0,0.00033698,14]
[332693860,1721452302933,-500.0,0.00033698,14]
[332693861,1721452302943,-500.0,0.00033698,14]
[332693862,1721452302953,-884.79,0.00033698,14]
[332693863,1721452302963,-500.0,0.00033698,14]
[332693864,1721452302972,-603.05,0.00033698,14]
[332693865,1721452302982,-504.67293971,0.00033698,14]
[332693866,1721452302991,-1733.33,0.00033698,14]
[332693867,1721452303001,-173.629087,0.00033698,7]
[332693868,1721452303010,-2149.91,0.00033698,14]
[332693869,1721452303020,-417.98183539,0.00033698,14]
[332693870,1721452303030,-500.0,0.00033698,14]
[332693871,1721452303039,-500.0,0.00033698,14]
[332693872,1721452303049,-500.0,0.00033698,14]
[332693873,1721452303058,-647.65077025,0.00033698,14]
[332693874,1721452303067,-1300.74,0.00033698,14]
[332693875,1721452303077,-173.629087,0.00033698,7]
[332693876,1721452303087,-500.0,0.00033698,14]
[332693877,1721452303096,-500.0,0.00033698,14]
[332693878,1721452303106,-500.0,0.00033698,14]
[332693879,1721452303116,-514.80457616,0.00033698,14]
[332693880,1721452303125,-500.0,0.00033698,14]
[332693881,1721452303135,-500.0,0.00033698,14]
[332693882,1721452303144,-1111.25,0.00033698,14]
[332693883,1721452303153,-500.0,0.00033698,14]
[332693884,1721452303162,-292.190895,0.00033698,7]
[332693885,1721452303171,-500.0,0.00033698,14]
[332693886,1721452303181,-500.0,0.00033698,14]
[332693887,1721452303190,-500.0,0.00033698,14]
[332693888,1721452303199,-500.0,0.00033698,14]
[332693889,1721452303209,-151.0,0.00033698,7]
[332693890,1721452303218,-509.22174267,0.00033698,14]
[332693891,1721452303227,-292.190895,0.00033698,7]
[332693892,1721452303236,-500.0,0.00033698,14]
[332693893,1721452303245,-248.7444,0.00033698,7]
[332693894,1721452303255,-500.0,0.00033698,14]
[332693895,1721452303264,-500.0,0.00033698,14]
[332693896,1721452303273,-500.0,0.00033698,14]
[332693897,1721452303283,-500.0,0.00033698,14]
[332693898,1721452303292,-563.93,0.00033698,14]
[332693899,1721452303301,-1238.04,0.00033698,14]
[332693900,1721452303311,-1017.18,0.00033698,14]
[332693901,1721452303320,-500.0,0.00033698,14]
[332693902,1721452303329,-500.0,0.00033698,14]
[332693903,1721452303338,-512.17,0.00033698,14]
[332693904,1721452303347,-151.0,0.00033698,7]
[332693905,1721452303356,-647.92,0.00033698,14]
[332693906,1721452303365,-500.0,0.00033698,14]
[332693907,1721452303374,-500.0,0.00033698,14]
[332693908,1721452303384,-692.06,0.00033698,14]
[332693909,1721452303393,-196.87492037,0.00033698,14]
[332693910,1721452303402,-1357.97,0.00033698,14]
[332693911,1721452303411,-518.30870134,0.00033698,14]
[332693912,1721452303420,-500.0,0.00033698,14]
[332693913,1721452303429,-763.87,0.00033698,14]
[332693914,1721452303438,-210.88878504,0.00033698,14]
[332693915,1721452303447,-500.0,0.00033698,14]
[332693916,1721452303456,-508.53466341,0.00033698,14]
[332693917,1721452303466,-637.96,0.00033698,14]
[332693918,1721452303476,-572.48,0.00033698,14]
[332693919,1721452303485,-1046.36,0.00033698,14]
[332693920,1721452303494,-691.25,0.00033698,14]
[332693921,1721452303503,-500.0,0.00033698,14]
[332693922,1721452303512,-500.0,0.00033698,14]
[332693923,1721452303521,-500.0,0.00033698,14]
[332693924,1721452303531,-1816.66,0.00033698,14]
[332693925,1721452303540,-500.0,0.00033698,14]
[332693926,1721452303550,-500.0,0.00033698,14]
[332693927,1721452303559,-530.2636989,0.00033698,14]
[332693928,1721452303568,-500.0,0.00033698,14]
[332693929,1721452303578,-519.32050492,0.00033698,14]
[332693930,1721452303587,-500.0,0.00033698,14]
[332693931,1721452303600,-500.0,0.00033698,14]
[332693932,1721452303610,-1709.3,0.00033698,14]
[332693933,1721452303619,-937.77,0.00033698,14]
[332693934,1721452303628,-500.0,0.00033698,14]
[332693935,1721452303638,-2311.96,0.00033698,14]
[332693936,1721452303647,-500.0,0.00033698,14]
[332693937,1721452303656,-500.0,0.00033698,14]
[332693938,1721452303665,-977.58,0.00033698,14]
[332693939,1721452303679,-889.94,0.00033698,14]
[332693940,1721452303688,-500.0,0.00033698,14]
[332693941,1721452303699,-500.0,0.00033698,14]
[332693942,1721452303709,-151.0,0.00033698,7]
[332693943,1721452303718,-500.0,0.00033698,14]
[332693944,1721452303727,-151.0,0.00033698,7]
[332693945,1721452303736,-500.0,0.00033698,14]
[332693946,1721452303745,-712.12,0.00033698,14]
[332693947,1721452303754,-2067.19,0.00033698,14]
[332693948,1721452303763,-889.44,0.00033698,14]
[332693949,1721452303773,-528.48,0.00033698,14]
[332693950,1721452303782,-1658.13,0.00033698,14]
[332693951,1721452303791,-500.0,0.00033698,14]
[332693952,1721452303800,-500.0,0.00033698,14]
[332693953,1721452303810,-855.84,0.00033698,2]
[332693954,1721452303819,-500.0,0.00033698,14]
[332693955,1721452303829,-500.0,0.00033698,14]
[332693956,1721452303838,-500.0,0.00033698,14]
[332693957,1721452303847,-1063.94,0.00033698,14]
[332693958,1721452303857,-500.0,0.00033698,14]
[332693959,1721452303867,-500.0,0.00033698,14]
[332693960,1721452303876,-511.7483196,0.00033698,14]
[332693961,1721452303885,-500.0,0.00033698,14]
[332693962,1721452303895,-1046.5,0.00033698,14]
[332693963,1721452303904,-500.0,0.00033698,14]
[332693964,1721452303913,-1310.39,0.00033698,14]
[332693965,1721452303923,-1401.11,0.00033698,14]
[332693966,1721452303932,-500.0,0.00033698,14]
[332693967,1721452303941,-500.0,0.00033698,14]
[332693968,1721452303951,-500.0,0.00033698,14]
[332693969,1721452303959,-1116.68,0.00033698,14]
[332693970,1721452303969,-500.0,0.00033698,14]
[332693971,1721452303978,-721.49,0.00033698,14]
[332693972,1721452303988,-1092.3,0.00033698,14]
[332693973,1721452303998,-500.0,0.00033698,14]
[332693974,1721452304007,-500.0,0.00033698,14]
[332693975,1721452304018,-500.0,0.00033698,14]
[332693976,1721452304028,-1007.82,0.00033698,14]
[332693977,1721452304039,-500.0,0.00033698,14]
[332693978,1721452304050,-886.3,0.00033698,14]
[332693979,1721452304061,-964.81,0.00033698,14]
[332693980,1721452304071,-730.04,0.00033698,14]
[332693981,1721452304080,-500.0,0.00033698,14]
[332693982,1721452304090,-500.0,0.00033698,14]
[332693983,1721452304099,-1245.07,0.00033698,14]
[332693984,1721452304108,-500.0,0.00033698,14]
[332693985,1721452304118,-500.0,0.00033698,14]
[332693986,1721452304127,-500.0,0.00033698,14]
[332693987,1721452304136,-151.0,0.00033698,7]
[332693988,1721452304145,-151.0,0.00033698,7]
[332693989,1721452304155,-500.0,0.00033698,14]
[332693990,1721452304164,-1347.55,0.00033698,14]
[332693991,1721452304173,-2110.3,0.00033698,14]
[332693992,1721452304183,-1060.23,0.00033698,14]
[332693993,1721452304192,-500.0,0.00033698,14]
[332693994,1721452304202,-500.0,0.00033698,14]
[332693995,1721452304211,-500.0,0.00033698,14]
[332693996,1721452304220,-500.0,0.00033698,14]
[332693997,1721452304229,-676.88,0.00033698,14]
[332693998,1721452304238,-500.0,0.00033698,14]
[332693999,1721452304248,-508.19322902,0.00033698,14]
[332694000,1721452304257,-857.78,0.00033698,14]
[332694001,1721452304266,-1009.09,0.00033698,14]
[332694002,1721452304275,-542.55,0.00033698,14]
[332694003,1721452304284,-500.0,0.00033698,14]
[332694004,1721452304293,-574.29,0.00033698,14]
[332694005,1721452304302,-500.0,0.00033698,14]
[332694006,1721452304311,-1463.03,0.00033698,14]
[332694007,1721452304320,-500.0,0.00033698,14]
[332694008,1721452304330,-618.39,0.00033698,14]
[332694009,1721452304339,-500.0,0.00033698,14]
[332694010,1721452304348,-1627.07,0.00033698,14]
[332694011,1721452304357,-500.0,0.00033698,14]
[332694012,1721452304368,-421.29695192,0.00033698,14]
[332694013,1721452304378,-500.0,0.00033698,14]
[332694014,1721452304387,-500.0,0.00033698,14]
[332694015,1721452304399,-631.27431675,0.00033698,14]
[332694016,1721452304409,-524.30391412,0.00033698,14]
[332694017,1721452304418,-1578.41,0.00033698,14]
[332694018,1721452304427,-500.0,0.00033698,14]
[332694019,1721452304436,-500.0,0.00033698,14]
[332694020,1721452304446,-769.81,0.00033698,14]
[332694021,1721452304455,-560.69338825,0.00033698,14]
[332694022,1721452304464,-500.0,0.00033698,14]
[332694023,1721452304473,-500.0,0.00033698,14]
[332694024,1721452304482,-151.0,0.00033698,7]
[332694025,1721452304493,-1081.1,0.00033698,14]
[332694026,1721452304502,-188.994032,0.00033698,7]
[332694027,1721452304511,-631.36699602,0.00033698,14]
[332694028,1721452304521,-2025.51,0.00033698,14]
[332694029,1721452304530,-500.0,0.00033698,14]
[332694030,1721452304539,-1022.1,0.00033698,14]
[332694031,1721452304549,-745.97,0.00033698,14]
[332694032,1721452304559,-521.77718611,0.00033698,14]
[332694033,1721452304568,-500.0,0.00033698,14]
[332694034,1721452304577,-610.72930283,0.00033698,14]
[332694035,1721452304587,-500.0,0.00033698,14]
[332694036,1721452304599,-622.47994932,0.00033698,14]
[332694037,1721452304610,-1297.98,0.00033698,14]
[332694038,1721452304622,-683.77,0.00033698,14]
[332694039,1721452304632,-500.0,0.00033698,14]
[332694040,1721452304642,-500.0,0.00033698,14]
[332694041,1721452304651,-675.93,0.00033698,14]
[332694042,1721452304660,-500.0,0.00033698,14]
[332694043,1721452304671,-500.0,0.00033698,14]
[332694044,1721452304680,-511.88219827,0.00033698,14]
[332694045,1721452304689,-500.0,0.00033698,14]
[332694046,1721452304699,-4023.17,0.00033698,14]
[332694047,1721452304708,-500.0,0.00033698,14]
[332694048,1721452304718,-500.0,0.00033698,14]
[332694049,1721452304727,-1158.55,0.00033698,14]
[332694050,1721452304736,-500.0,0.00033698,14]
[332694051,1721452304745,-501.61,0.00033698,14]
[332694052,1721452304755,-500.0,0.00033698,14]
[332694053,1721452304764,-500.0,0.00033698,14]
[332694054,1721452304773,-1096.49,0.00033698,14]
[332694055,1721452304782,-500.0,0.00033698,14]
[332694056,1721452304791,-500.0,0.00033698,14]
[332694057,1721452304800,-500.0,0.00033698,14]
[332694058,1721452304810,-500.0,0.00033698,14]
[332694059,1721452304819,-500.0,0.00033698,14]
[332694060,1721452304828,-443.018396,0.00033698,7]
[332694061,1721452304837,-597.24,0.00033698,14]
[332694062,1721452304846,-500.0,0.00033698,14]
[332694063,1721452304855,-511.20263894,0.00033698,14]
[332694064,1721452304867,-500.0,0.00033698,14]
[332694065,1721452304877,-505.10081835,0.00033698,14]
[332694066,1721452304887,-500.0,0.00033698,14]
[332694067,1721452304896,-500.0,0.00033698,14]
[332694068,1721452304906,-1126.75,0.00033698,14]
[332694069,1721452304916,-500.0,0.00033698,14]
[332694070,1721452304926,-500.0,0.00033698,14]
[332694071,1721452304935,-500.0,0.00033698,14]
[332694072,1721452304945,-503.55135964,0.00033698,14]
[332694073,1721452304954,-500.0,0.00033698,14]
[332694074,1721452304964,-500.0,0.00033698,14]
[332694075,1721452304973,-500.0,0.00033698,14]
[332694076,1721452304983,-504.96595607,0.00033698,14]
[332694077,1721452304993,-500.0,0.00033698,14]
[332694078,1721452305004,-500.0,0.00033698,14]
[332694079,1721452305014,-500.0,0.00033698,14]
[332694080,1721452305024,-506.77147268,0.00033698,14]